fUSD/lending_fUSD_20240412
["ID","MTS","AMOUNT","RATE_DAILY","PERIOD"]
[322237600,1712909447647,-500.0,0.00027397,2]
[322237601,1712909447657,-511.53158213,0.00027397,2]
[322237602,1712909447666,-500.0,0.00027397,2]
[322237603,1712909447675,-500.0,0.00027397,2]
[322237604,1712909447687,-500.0,0.00027397,2]
[322237605,1712909447698,-964.02,0.00027397,2]
[322237606,1712909447707,-500.0,0.00027397,2]
[322237607,1712909447716,-500.0,0.00027397,2]
[322237608,1712909447726,-500.0,0.00027397,2]
[322237609,1712909447735,-505.26906475,0.00027397,2]
[322237610,1712909447744,-500.0,0.00027397,2]
[322237611,1712909447753,-516.19641137,0.00027397,2]
[322237612,1712909447762,-500.0,0.00027397,2]
[322237613,1712909447771,-500.0,0.00027397,2]
[322237614,1712909447781,-500.0,0.00027397,2]
[322237615,1712909447790,-500.0,0.00027397,2]
[322237616,1712909447799,-500.0,0.00027397,2]
[322237617,1712909447808,-518.91585864,0.00027397,2]
[322237618,1712909447818,-500.0,0.00027397,2]
[322237619,1712909447827,-500.0,0.00027397,2]
[322237620,1712909447838,-500.0,0.00027397,2]
[322237621,1712909447847,-500.0,0.00027397,2]
[322237622,1712909447857,-500.0,0.00027397,2]
[322237623,1712909447867,-500.0,0.00027397,2]
[322237624,1712909447876,-500.0,0.00027397,2]
[322237625,1712909447885,-500.0,0.00027397,2]
[322237626,1712909447894,-500.0,0.00027397,2]
[322237627,1712909447904,-500.0,0.00027397,2]
[322237628,1712909447913,-500.0,0.00027397,2]
[322237629,1712909447924,-590.46268188,0.00027397,2]
[322237630,1712909447935,-500.0,0.00027397,2]
[322237631,1712909447945,-510.14005528,0.00027397,2]
[322237632,1712909447954,-500.0,0.00027397,2]
[322237633,1712909447963,-510.75990535,0.00027397,2]
[322237634,1712909447972,-500.0,0.00027397,2]
[322237635,1712909447981,-500.0,0.00027397,2]
[322237636,1712909447990,-500.0,0.00027397,2]
[322237637,1712909447999,-500.0,0.00027397,2]
[322237638,1712909448008,-500.0,0.00027397,2]
[322237639,1712909448018,-415.94903858,0.00027397,2]
[322237640,1712909448027,-500.0,0.00027397,2]
[322237641,1712909448036,-500.0,0.00027397,2]
[322237642,1712909448046,-500.0,0.00027397,2]
[322237643,1712909448055,-500.0,0.00027397,2]
[322237644,1712909448065,-500.0,0.00027397,2]
[322237645,1712909448074,-505.18872939,0.00027397,2]
[322237646,1712909448083,-500.0,0.00027397,2]
[322237647,1712909448093,-500.0,0.00027397,2]
[322237648,1712909448102,-500.0,0.00027397,2]
[322237649,1712909448112,-535.95,0.00027397,2]
[322237650,1712909448121,-500.0,0.00027397,2]
[322237651,1712909448130,-500.0,0.00027397,2]
[322237652,1712909448139,-500.0,0.00027397,2]
[322237653,1712909448149,-500.0,0.00027397,2]
[322237654,1712909448159,-523.49033173,0.00027397,2]
[322237655,1712909448169,-500.0,0.00027397,2]
[322237656,1712909448179,-608.09,0.00027397,2]
[322237657,1712909448188,-500.0,0.00027397,2]
[322237658,1712909448197,-500.0,0.00027397,2]
[322237659,1712909448206,-500.0,0.00027397,2]
[322237660,1712909448216,-500.0,0.00027397,2]
[322237661,1712909448226,-486.61551226,0.00027397,2]
[322237662,1712909448236,-500.0,0.00027397,2]
[322237663,1712909448245,-537.86,0.00027397,2]
[322237664,1712909448256,-500.0,0.00027397,2]
[322237665,1712909448265,-500.0,0.00027397,2]
[322237666,1712909448275,-500.0,0.00027397,2]
[322237667,1712909448284,-500.0,0.00027397,2]
[322237668,1712909448293,-514.60130602,0.00027397,2]
[322237669,1712909448302,-515.38083678,0.00027397,2]
[322237670,1712909448314,-500.0,0.00027397,2]
[322237671,1712909448324,-500.0,0.00027397,2]
[322237672,1712909448332,-500.0,0.00027397,2]
[322237673,1712909448341,-500.0,0.00027397,2]
[322237674,1712909448350,-500.0,0.00027397,2]
[322237675,1712909448359,-500.0,0.00027397,2]
[322237676,1712909448369,-503.67010404,0.00027397,2]
[322237677,1712909448379,-500.0,0.00027397,2]
[322237678,1712909448388,-500.0,0.00027397,2]
[322237679,1712909448397,-500.0,0.00027397,2]
[322237680,1712909448407,-513.48984927,0.00027397,2]
[322237681,1712909448416,-500.0,0.00027397,2]
[322237682,1712909448425,-500.0,0.00027397,2]
[322237683,1712909448434,-500.0,0.00027397,2]
[322237684,1712909448443,-154.41017279,0.00027397,2]
[322237685,1712909448452,-500.0,0.00027397,2]
[322237686,1712909448461,-500.0,0.00027397,2]
[322237687,1712909448470,-274.275631,0.00027397,2]
[322237688,1712909448479,-500.0,0.00027397,2]
[322237689,1712909448489,-501.79103453,0.00027397,2]
[322237690,1712909448497,-500.0,0.00027397,2]
[322237691,1712909448506,-500.0,0.00027397,2]
[322237692,1712909448515,-500.0,0.00027397,2]
[322237693,1712909448525,-500.0,0.00027397,2]
[322237694,1712909448536,-431.25016338,0.00027397,2]
[322237695,1712909448545,-500.0,0.00027397,2]
[322237696,1712909448554,-500.0,0.00027397,2]
[322237697,1712909448563,-500.0,0.00027397,2]
[322237698,1712909448573,-500.0,0.00027397,2]
[322237699,1712909448582,-500.0,0.00027397,2]
[322237700,1712909448591,-524.25990081,0.00027397,2]
[322237701,1712909448600,-500.0,0.00027397,2]
[322237702,1712909448610,-500.0,0.00027397,2]
[322237703,1712909448618,-500.0,0.00027397,2]
[322237704,1712909448627,-500.0,0.00027397,2]
[322237705,1712909448636,-500.0,0.00027397,2]
[322237706,1712909448645,-500.0,0.00027397,2]
[322237707,1712909448654,-500.0,0.00027397,2]
[322237708,1712909448663,-285.64927331,0.00027397,2]
[322237709,1712909448672,-500.0,0.00027397,2]
[322237710,1712909448682,-500.0,0.00027397,2]
[322237711,1712909448691,-500.0,0.00027397,2]
[322237712,1712909448700,-500.0,0.00027397,2]
[322237713,1712909448709,-500.0,0.00027397,2]
[322237714,1712909448717,-500.0,0.00027397,2]
[322237715,1712909448727,-500.0,0.00027397,2]
[322237716,1712909448736,-500.0,0.00027397,2]
[322237717,1712909448745,-537.75678544,0.00027397,2]
[322237718,1712909448754,-500.0,0.00027397,2]
[322237719,1712909448763,-500.0,0.00027397,2]
[322237720,1712909448773,-500.0,0.00027397,2]
[322237721,1712909448782,-500.0,0.00027397,2]
[322237722,1712909448791,-500.0,0.00027397,2]
[322237723,1712909448800,-418.40886382,0.00027397,2]
[322237724,1712909448809,-500.0,0.00027397,2]
[322237725,1712909448818,-500.0,0.00027397,2]
[322237726,1712909448827,-500.0,0.00027397,2]
[322237727,1712909448836,-500.0,0.00027397,2]
[322237728,1712909448845,-500.0,0.00027397,2]
[322237729,1712909448855,-500.0,0.00027397,2]
[322237730,1712909448864,-509.61188412,0.00027397,2]
[322237731,1712909448872,-500.0,0.00027397,2]
[322237732,1712909448881,-500.0,0.00027397,2]
[322237733,1712909448890,-504.97755298,0.00027397,2]
[322237734,1712909448899,-500.0,0.00027397,2]
[322237735,1712909448908,-500.0,0.00027397,2]
[322237736,1712909448917,-7853.09,0.00027397,2]
[322237737,1712909448925,-495.48372114,0.00027397,2]
[322237738,1712909448935,-500.0,0.00027397,2]
[322237739,1712909448944,-500.0,0.00027397,2]
[322237740,1712909448952,-243.29060458,0.00027397,2]
[322237741,1712909448961,-500.0,0.00027397,2]
[322237742,1712909448970,-500.0,0.00027397,2]
[322237743,1712909448978,-271.75683042,0.00027397,2]
[322237744,1712909448987,-500.0,0.00027397,2]
[322237745,1712909448996,-500.0,0.00027397,2]
[322237746,1712909449005,-509.21936118,0.00027397,2]
[322237747,1712909449014,-500.0,0.00027397,2]
[322237748,1712909449023,-568.52722949,0.00027397,2]
[322237749,1712909449031,-500.0,0.00027397,2]
[322237750,1712909449040,-526.97159416,0.00027397,2]
[322237751,1712909449049,-500.0,0.00027397,2]
[322237752,1712909449058,-528.98,0.00027397,2]
[322237753,1712909449067,-977.47,0.00027397,2]
[322237754,1712909449076,-500.0,0.00027397,2]
[322237755,1712909449084,-500.0,0.00027397,2]
[322237756,1712909449093,-500.0,0.00027397,2]
[322237757,1712909449102,-500.0,0.00027397,2]
[322237758,1712909449111,-500.0,0.00027397,2]
[322237759,1712909449120,-540.26,0.00027397,2]
[322237760,1712909449128,-500.0,0.00027397,2]
[322237761,1712909449137,-500.11176581,0.00027397,2]
[322237762,1712909449146,-1028.44,0.00027397,2]
[322237763,1712909449156,-500.0,0.00027397,2]
[322237764,1712909449165,-500.0,0.00027397,2]
[322237765,1712909449174,-500.0,0.00027397,2]
[322237766,1712909449184,-500.0,0.00027397,2]
[322237767,1712909449193,-502.60418016,0.00027397,2]
[322237768,1712909449202,-273.92197414,0.00027397,2]
[322237769,1712909449211,-500.0,0.00027397,2]
[322237770,1712909449221,-1696.07,0.00027397,2]
[322237771,1712909449230,-538.53,0.00027397,2]
[322237772,1712909449240,-500.0,0.00027397,2]
[322237773,1712909449249,-500.0,0.00027397,2]
[322237774,1712909449258,-500.0,0.00027397,2]
[322237775,1712909449267,-500.0,0.00027397,2]
[322237776,1712909449277,-1750.84,0.00027397,2]
[322237777,1712909449287,-506.99702228,0.00027397,2]
[322237778,1712909449296,-1666.59,0.00027397,2]
[322237779,1712909449304,-500.0,0.00027397,2]
[322237780,1712909449314,-500.0,0.00027397,2]
[322237781,1712909449323,-500.0,0.00027397,2]
[322237782,1712909449332,-2602.3,0.00027397,2]
[322237783,1712909449341,-698.14,0.00027397,2]
[322237784,1712909449351,-500.0,0.00027397,2]
[322237785,1712909449360,-4707.17,0.00027397,2]
[322237786,1712909449369,-500.0,0.00027397,2]
[322237787,1712909449378,-500.0,0.00027397,2]
[322237788,1712909449387,-500.0,0.00027397,2]
[322237789,1712909449397,-1342.7,0.00027397,2]
[322237790,1712909449409,-503.4,0.00027397,2]
[322237791,1712909449418,-348.06142081,0.00027397,2]
[322237792,1712909449428,-509.90104088,0.00027397,2]
[322237793,1712909449438,-500.0,0.00027397,2]
[322237794,1712909449447,-313.67300017,0.00027397,2]
[322237795,1712909449456,-500.0,0.00027397,2]
[322237796,1712909449466,-500.0,0.00027397,2]
[322237797,1712909449475,-500.0,0.00027397,2]
[322237798,1712909449484,-500.0,0.00027397,2]
[322237799,1712909449494,-774.15,0.00027397,2]
[322237800,1712909449504,-500.0,0.00027397,2]
[322237801,1712909449513,-500.0,0.00027397,2]
[322237802,1712909449522,-500.0,0.00027397,2]
[322237803,1712909449535,-500.0,0.00027397,2]
[322237804,1712909449545,-500.0,0.00027397,2]
[322237805,1712909449554,-500.0,0.00027397,2]
[322237806,1712909449564,-1260.62,0.00027397,2]
[322237807,1712909449574,-500.0,0.00027397,2]
[322237808,1712909449583,-500.0,0.00027397,2]
[322237809,1712909449593,-500.0,0.00027397,2]
[322237810,1712909449602,-505.16068073,0.00027397,2]
[322237811,1712909449611,-1055.11,0.00027397,2]
[322237812,1712909449621,-1066.14,0.00027397,2]
[322237813,1712909449630,-500.0,0.00027397,2]
[322237814,1712909449640,-510.89246461,0.00027397,2]
[322237815,1712909449650,-2366.69,0.00027397,2]
[322237816,1712909449659,-203.70735131,0.00027397,2]
[322237817,1712909449668,-500.0,0.00027397,2]
[322237818,1712909449677,-516.01841768,0.00027397,2]
[322237819,1712909449688,-762.74,0.00027397,2]
[322237820,1712909449697,-500.0,0.00027397,2]
[322237821,1712909449706,-500.0,0.00027397,2]
[322237822,1712909449715,-500.0,0.00027397,2]
[322237823,1712909449724,-500.0,0.00027397,2]
[322237824,1712909449734,-500.0,0.00027397,2]
[322237825,1712909449743,-500.0,0.00027397,2]
[322237826,1712909449751,-500.0,0.00027397,2]
[322237827,1712909449760,-500.34390821,0.00027397,2]
[322237828,1712909449769,-859.96,0.00027397,2]
[322237829,1712909449778,-500.0,0.00027397,2]
[322237830,1712909449787,-500.0,0.00027397,2]
[322237831,1712909449797,-598.99,0.00027397,2]
[322237832,1712909449806,-1973.67,0.00027397,2]
[322237833,1712909449815,-500.0,0.00027397,2]
[322237834,1712909449825,-506.24338443,0.00027397,2]
[322237835,1712909449834,-898.01,0.00027397,2]
[322237836,1712909449843,-456.66250328,0.00027397,2]
[322237837,1712909449852,-1184.12,0.00027397,2]
[322237838,1712909449862,-510.45198486,0.00027397,2]
[322237839,1712909449871,-5762.8,0.00027397,2]
[322237840,1712909449881,-500.0,0.00027397,2]
[322237841,1712909449890,-500.0,0.00027397,2]
[322237842,1712909449899,-500.0,0.00027397,2]
[322237843,1712909449907,-500.0,0.00027397,2]
[322237844,1712909449915,-500.0,0.00027397,2]
[322237845,1712909449923,-500.0,0.00027397,2]
[322237846,1712909449933,-500.0,0.00027397,2]
[322237847,1712909449942,-500.0,0.00027397,2]
[322237848,1712909449950,-500.0,0.00027397,2]
[322237849,1712909449959,-500.0,0.00027397,2]
[322237850,1712909449968,-688.0,0.00027397,2]
[322237851,1712909449978,-574.87,0.00027397,2]
[322237852,1712909449987,-500.0,0.00027397,2]
[322237853,1712909449997,-500.0,0.00027397,2]
[322237854,1712909450007,-1674.68,0.00027397,2]
[322237855,1712909450016,-500.0,0.00027397,2]
[322237856,1712909450025,-500.0,0.00027397,2]
[322237857,1712909450035,-500.0,0.00027397,2]
[322237858,1712909450044,-500.0,0.00027397,2]
[322237859,1712909450054,-500.0,0.00027397,2]
[322237860,1712909450063,-561.17,0.00027397,2]
[322237861,1712909450072,-500.0,0.00027397,2]
[322237862,1712909450082,-500.0,0.00027397,2]
[322237863,1712909450091,-500.0,0.00027397,2]
[322237864,1712909450101,-500.0,0.00027397,2]
[322237865,1712909450110,-500.0,0.00027397,2]
[322237866,1712909450119,-1603.96,0.00027397,2]
[322237867,1712909450128,-500.0,0.00027397,2]
[322237868,1712909450137,-500.0,0.00027397,2]
[322237869,1712909450147,-500.0,0.00027397,2]
[322237870,1712909450156,-500.0,0.00027397,2]
[322237871,1712909450165,-500.0,0.00027397,2]
[322237872,1712909450175,-500.0,0.00027397,2]
[322237873,1712909450186,-500.0,0.00027397,2]
[322237874,1712909450195,-500.0,0.00027397,2]
[322237875,1712909450205,-500.0,0.00027397,2]
[322237876,1712909450215,-500.0,0.00027397,2]
[322237877,1712909450225,-500.0,0.00027397,2]
[322237878,1712909450234,-4943.89,0.00027397,2]
[322237879,1712909450244,-500.0,0.00027397,2]
[322237880,1712909450255,-500.0,0.00027397,2]
[322237881,1712909450264,-567.35,0.00027397,2]
[322237882,1712909450274,-567.35,0.00027397,2]
[322237883,1712909450283,-567.35,0.00027397,2]
[322237884,1712909450293,-567.35,0.00027397,2]
[322237885,1712909450303,-500.0,0.00027397,2]
[322237886,1712909450312,-567.35,0.00027397,2]
[322237887,1712909450322,-842.1,0.00027397,2]
[322237888,1712909450331,-500.0,0.00027397,2]
[322237889,1712909450342,-500.0,0.00027397,2]
[322237890,1712909450352,-664.2,0.00027397,2]
[322237891,1712909450362,-1630.81,0.00027397,2]
[322237892,1712909450372,-500.0,0.00027397,2]
[322237893,1712909450383,-531.65,0.00027397,2]
[322237894,1712909450393,-1114.55,0.00027397,2]
[322237895,1712909450403,-500.0,0.00027397,2]
[322237896,1712909450415,-770.1,0.00027397,2]
[322237897,1712909450425,-500.0,0.00027397,2]
[322237898,1712909450436,-500.0,0.00027397,2]
[322237899,1712909450446,-888.73,0.00027397,2]
[322237900,1712909450457,-500.0,0.00027397,2]
[322237901,1712909450467,-500.0,0.00027397,2]
[322237902,1712909450477,-1054.57,0.00027397,2]
[322237903,1712909450488,-500.0,0.00027397,2]
[322237904,1712909450497,-253.90773249,0.00027397,2]
[322237905,1712909450508,-500.0,0.00027397,2]
[322237906,1712909450529,-500.0,0.00027397,2]
[322237907,1712909450552,-2013.38,0.00027397,2]
[322237908,1712909450562,-981.53,0.00027397,2]
[322237909,1712909450572,-500.0,0.00027397,2]
[322237910,1712909450581,-529.17,0.00027397,2]
[322237911,1712909450590,-500.0,0.00027397,2]
[322237912,1712909450600,-500.0,0.00027397,2]
[322237913,1712909450609,-1888.21,0.00027397,2]
[322237914,1712909450618,-2062.14,0.00027397,2]
[322237915,1712909450628,-500.0,0.00027397,2]
[322237916,1712909450638,-743.15,0.00027397,2]
[322237917,1712909450648,-400.08376553,0.00027397,2]
[322237918,1712909450658,-500.0,0.00027397,2]
[322237919,1712909450668,-500.0,0.00027397,2]
[322237920,1712909450677,-500.0,0.00027397,2]
[322237921,1712909450688,-500.0,0.00027397,2]
[322237922,1712909450698,-1311.94,0.00027397,2]
[322237923,1712909450708,-500.0,0.00027397,2]
[322237924,1712909450717,-500.0,0.00027397,2]
[322237925,1712909450726,-500.0,0.00027397,2]
[322237926,1712909450736,-998.68,0.00027397,2]
[322237927,1712909450746,-500.0,0.00027397,2]
[322237928,1712909450756,-500.0,0.00027397,2]
[322237929,1712909450765,-500.0,0.00027397,2]
[322237930,1712909450774,-5719.81,0.00027397,2]
[322237931,1712909450783,-500.0,0.00027397,2]
[322237932,1712909450793,-500.0,0.00027397,2]
[322237933,1712909450803,-500.0,0.00027397,2]
[322237934,1712909450812,-500.0,0.00027397,2]
[322237935,1712909450821,-500.0,0.00027397,2]
[322237936,1712909450831,-500.0,0.00027397,2]
[322237937,1712909450840,-2481.96,0.00027397,2]
[322237938,1712909450849,-500.0,0.00027397,2]
[322237939,1712909450858,-500.0,0.00027397,2]
[322237940,1712909450867,-500.0,0.00027397,2]
[322237941,1712909450876,-502.95718113,0.00027397,2]
[322237942,1712909450886,-1814.4,0.00027397,2]
[322237943,1712909450894,-500.0,0.00027397,2]
[322237944,1712909450904,-500.0,0.00027397,2]
[322237945,1712909450913,-500.0,0.00027397,2]
[322237946,1712909450923,-500.0,0.00027397,2]
[322237947,1712909450935,-832.11,0.00027397,2]
[322237948,1712909450944,-553.93071905,0.00027397,2]
[322237949,1712909450953,-702.73,0.00027397,2]
[322237950,1712909450962,-500.0,0.00027397,2]
[322237951,1712909450972,-359.69889747,0.00027397,2]
[322237952,1712909450981,-501.25093947,0.00027397,2]
[322237953,1712909450990,-500.0,0.00027397,2]
[322237954,1712909450999,-500.23894882,0.00027397,2]
[322237955,1712909451009,-953.66,0.00027397,2]
[322237956,1712909451018,-746.56,0.00027397,2]
[322237957,1712909451027,-500.0,0.00027397,2]
[322237958,1712909451036,-746.56,0.00027397,2]
[322237959,1712909451045,-746.56,0.00027397,2]
[322237960,1712909451054,-746.56,0.00027397,2]
[322237961,1712909451063,-1944.81,0.00027397,2]
[322237962,1712909451072,-500.0,0.00027397,2]
[322237963,1712909451082,-500.0,0.00027397,2]
[322237964,1712909451091,-500.0,0.00027397,2]
[322237965,1712909451101,-1836.26,0.00027397,2]
[322237966,1712909451110,-822.68,0.00027397,2]
[322237967,1712909451120,-500.0,0.00027397,2]
[322237968,1712909451130,-500.0,0.00027397,2]
[322237969,1712909451139,-500.71050372,0.00027397,2]
[322237970,1712909451149,-768.85,0.00027397,2]
[322237971,1712909451158,-500.0,0.00027397,2]
[322237972,1712909451170,-500.0,0.00027397,2]
[322237973,1712909451179,-500.0,0.00027397,2]
[322237974,1712909451189,-791.75,0.00027397,2]
[322237975,1712909451199,-500.0,0.00027397,2]
[322237976,1712909451209,-1723.18,0.00027397,2]
[322237977,1712909451218,-500.0,0.00027397,2]
[322237978,1712909451228,-500.0,0.00027397,2]
[322237979,1712909451237,-500.0,0.00027397,2]
[322237980,1712909451246,-500.0,0.00027397,2]
[322237981,1712909451256,-500.65661587,0.00027397,2]
[322237982,1712909451266,-500.0,0.00027397,2]
[322237983,1712909451276,-500.0,0.00027397,2]
[322237984,1712909451285,-2727.22,0.00027397,2]
[322237985,1712909451295,-500.0,0.00027397,2]
[322237986,1712909451306,-507.60484537,0.00027397,2]
[322237987,1712909451315,-501.04348966,0.00027397,2]
[322237988,1712909451325,-542.16,0.00027397,2]
[322237989,1712909451334,-500.0,0.00027397,2]
[322237990,1712909451343,-500.0,0.00027397,2]
[322237991,1712909451353,-496.91808674,0.00027397,2]
[322237992,1712909451362,-500.0,0.00027397,2]
[322237993,1712909451372,-500.0,0.00027397,2]
[322237994,1712909451381,-1641.36,0.00027397,2]
[322237995,1712909451391,-3094.55,0.00027397,2]
[322237996,1712909451400,-500.0,0.00027397,2]
[322237997,1712909451410,-408.62795077,0.00027397,2]
[322237998,1712909451419,-2678.96,0.00027397,2]
[322237999,1712909451428,-511.14,0.00027397,2]
[322238000,1712909451439,-634.92,0.00027397,2]
[322238001,1712909451448,-500.0,0.00027397,2]
[322238002,1712909451458,-500.0,0.00027397,2]
[322238003,1712909451649,-500.0,0.00027397,2]
[322238004,1712909451659,-500.0,0.00027397,2]
[322238005,1712909451668,-1163.38,0.00027397,2]
[322238006,1712909451677,-1827.25,0.00027397,2]
[322238007,1712909451688,-500.0,0.00027397,2]
[322238008,1712909451697,-500.0,0.00027397,2]
[322238009,1712909451706,-500.0,0.00027397,2]
[322238010,1712909451716,-1243.02,0.00027397,2]
[322238011,1712909451725,-500.0,0.00027397,2]
[322238012,1712909451735,-500.0,0.00027397,2]
[322238013,1712909451743,-500.0,0.00027397,2]
[322238014,1712909451753,-500.0,0.00027397,2]
[322238015,1712909451762,-500.0,0.00027397,2]
[322238016,1712909451771,-500.0,0.00027397,2]
[322238017,1712909451781,-5415.6,0.00027397,2]
[322238018,1712909451791,-179.2,0.00027397,10]
[322238019,1712909451801,-896.01,0.00027397,10]
[322238020,1712909451811,-154.20406454,0.00027488,2]
[322238021,1712909451820,-166.66666665,0.00027548,2]
[322238022,1712909451829,-154.09758037,0.0002759,2]
[322238023,1712909451839,-4572.46475471,0.00027644,2]
[322238024,1712909451848,-200.0,0.00027651,7]
[322238025,1712909451858,-152.96337254,0.00027664,2]
[322238026,1712909451868,-295.94921399,0.00027669,2]
[322238027,1712909451877,-6009.73490683,0.00027669,2]
[322238028,1712909451886,-363.58808565,0.00027669,2]
[322238029,1712909451896,-439.16995933,0.0002767,2]
[322238030,1712909451905,-500.0,0.0002767,2]
[322238031,1712909451914,-876.44,0.0002767,2]
[322238032,1712909451923,-500.0,0.0002767,2]
[322238033,1712909451934,-567.35,0.0002767,2]
[322238034,1712909451943,-746.56,0.0002767,2]
[322238035,1712909451953,-500.0,0.00027671,2]
[322238036,1712909451962,-500.0,0.00027671,2]
[322238037,1712909451972,-500.0,0.00027671,2]
[322238038,1712909451982,-500.0,0.00027671,2]
[322238039,1712909451991,-554.01761972,0.00027671,2]
[322238040,1712909452001,-500.0,0.00027671,2]
[322238041,1712909452010,-511.21590514,0.00027671,2]
[322238042,1712909452020,-516.27220494,0.00027671,2]
[322238043,1712909452029,-500.0,0.00027671,2]
[322238044,1712909452038,-526.47360514,0.00027671,2]
[322238045,1712909452048,-500.0,0.00027671,2]
[322238046,1712909452057,-500.0,0.00027671,2]
[322238047,1712909452066,-500.0,0.00027671,2]
[322238048,1712909452076,-500.0,0.00027671,2]
[322238049,1712909452085,-500.0,0.00027671,2]
[322238050,1712909452095,-523.10901249,0.00027671,2]
[322238051,1712909452105,-512.82793846,0.00027671,2]
[322238052,1712909452114,-500.0,0.00027671,2]
[322238053,1712909452123,-500.0,0.00027671,2]
[322238054,1712909452132,-500.0,0.00027671,2]
[322238055,1712909452141,-178.31761141,0.00027671,2]
[322238056,1712909452151,-370.22718549,0.00027671,2]
[322238057,1712909452161,-508.94360596,0.00027671,2]
[322238058,1712909452171,-500.0,0.00027671,2]
[322238059,1712909452180,-596.77,0.00027671,2]
[322238060,1712909452190,-500.0,0.00027671,2]
[322238061,1712909452201,-500.0,0.00027671,2]
[322238062,1712909452210,-500.0,0.00027671,2]
[322238063,1712909452220,-631.65129777,0.00027671,2]
[322238064,1712909452230,-500.0,0.00027671,2]
[322238065,1712909452240,-500.0,0.00027671,2]
[322238066,1712909452251,-500.0,0.00027671,2]
[322238067,1712909452261,-500.0,0.00027671,2]
[322238068,1712909452273,-500.0,0.00027671,2]
[322238069,1712909452284,-500.0,0.00027671,2]
[322238070,1712909452293,-500.0,0.00027671,2]
[322238071,1712909452302,-500.0,0.00027671,2]
[322238072,1712909452313,-500.0,0.00027671,2]
[322238073,1712909452323,-500.0,0.00027671,2]
[322238074,1712909452333,-500.0,0.00027671,2]
[322238075,1712909452344,-500.0,0.00027671,2]
[322238076,1712909452354,-500.0,0.00027671,2]
[322238077,1712909452365,-500.0,0.00027671,2]
[322238078,1712909452374,-167.00275144,0.00027671,2]
[322238079,1712909452386,-525.89811009,0.00027671,2]
[322238080,1712909452396,-500.0,0.00027671,2]
[322238081,1712909452407,-500.0,0.00027671,2]
[322238082,1712909452417,-500.0,0.00027671,2]
[322238083,1712909452426,-500.0,0.00027671,2]
[322238084,1712909452439,-500.0,0.00027671,2]
[322238085,1712909452450,-500.0,0.00027671,2]
[322238086,1712909452460,-500.0,0.00027671,2]
[322238087,1712909452469,-500.0,0.00027671,2]
[322238088,1712909452479,-500.0,0.00027671,2]
[322238089,1712909452489,-539.29986596,0.00027671,2]
[322238090,1712909452500,-500.0,0.00027671,2]
[322238091,1712909452510,-500.0,0.00027671,2]
[322238092,1712909452519,-500.0,0.00027671,2]
[322238093,1712909452530,-482.71310968,0.00027671,2]
[322238094,1712909452543,-500.0,0.00027671,2]
[322238095,1712909452553,-500.0,0.00027671,2]
[322238096,1712909452563,-500.0,0.00027671,2]
[322238097,1712909452574,-500.0,0.00027671,2]
[322238098,1712909452584,-500.0,0.00027671,2]
[322238099,1712909452595,-500.0,0.00027671,2]